fUST/lending_fUST_20240705
["ID","MTS","AMOUNT","RATE_DAILY","PERIOD"]
[331170376,1720116652682,-500.0,0.0001452,2]
[331170377,1720116652691,-500.0,0.0001452,2]
[331170378,1720116652701,-500.0,0.0001452,2]
[331170379,1720116652710,-500.0,0.0001452,2]
[331170380,1720116652719,-537.66,0.0001452,2]
[331170381,1720116652728,-500.0,0.0001452,2]
[331170382,1720116652740,-500.0,0.0001452,2]
[331170383,1720116652749,-2191.0,0.0001452,2]
[331170384,1720116652758,-500.0,0.0001452,2]
[331170385,1720116652767,-500.0,0.0001452,2]
[331170386,1720116652776,-500.0,0.0001452,2]
[331170387,1720116652786,-500.0,0.0001452,2]
[331170388,1720116652795,-500.0,0.0001452,2]
[331170389,1720116652805,-2608.98,0.0001452,2]
[331170390,1720116652814,-1428.55,0.0001452,2]
[331170391,1720116652825,-500.0,0.0001452,2]
[331170392,1720116652835,-854.63,0.0001452,2]
[331170393,1720116652844,-500.0,0.0001452,2]
[331170394,1720116652853,-500.0,0.0001452,2]
[331170395,1720116652862,-500.0,0.0001452,2]
[331170396,1720116652871,-500.0,0.0001452,2]
[331170397,1720116652880,-937.63,0.0001452,2]
[331170398,1720116652889,-500.0,0.0001452,2]
[331170399,1720116652898,-7574.65,0.0001452,2]
[331170400,1720116652907,-500.0,0.0001452,2]
[331170401,1720116652916,-4805.61,0.0001452,2]
[331170402,1720116652925,-500.0,0.0001452,2]
[331170403,1720116652934,-500.0,0.0001452,2]
[331170404,1720116652943,-500.0,0.0001452,2]
[331170405,1720116652952,-686.89,0.0001452,2]
[331170406,1720116652961,-500.0,0.0001452,2]
[331170407,1720116652971,-500.0,0.0001452,2]
[331170408,1720116652980,-500.0,0.0001452,2]
[331170409,1720116652990,-500.0,0.0001452,2]
[331170410,1720116653000,-2684.55,0.0001452,2]
[331170411,1720116653009,-500.0,0.0001452,2]
[331170412,1720116653018,-500.0,0.0001452,2]
[331170413,1720116653027,-500.0,0.0001452,2]
[331170414,1720116653036,-500.0,0.0001452,2]
[331170415,1720116653046,-500.0,0.0001452,2]
[331170416,1720116653055,-6698.25,0.0001452,2]
[331170417,1720116653064,-6698.25,0.0001452,2]
[331170418,1720116653073,-500.0,0.0001452,2]
[331170419,1720116653081,-151.0,0.0001452,2]
[331170420,1720116653090,-500.0,0.0001452,2]
[331170421,1720116653099,-393.029089,0.0001452,2]
[331170422,1720116653108,-393.029089,0.0001452,2]
[331170423,1720116653118,-500.0,0.0001452,2]
[331170424,1720116653127,-151.0,0.0001452,2]
[331170425,1720116653136,-500.0,0.0001452,2]
[331170426,1720116653146,-487.63109753,0.0001452,2]
[331170427,1720116653155,-500.0,0.0001452,2]
[331170428,1720116653164,-17530.33,0.0001452,2]
[331170429,1720116653173,-151.0,0.0001452,2]
[331170430,1720116653185,-162.034048,0.0001452,2]
[331170431,1720116653194,-225.642595,0.0001452,2]
[331170432,1720116653207,-500.0,0.0001452,2]
[331170433,1720116653216,-208.26186973,0.0001452,2]
[331170434,1720116653225,-1688.93,0.0001452,2]
[331170435,1720116653236,-312.9,0.0001452,2]
[331170436,1720116653247,-502.28656995,0.0001452,2]
[331170437,1720116653256,-579.28,0.0001452,2]
[331170438,1720116653266,-500.0,0.0001452,2]
[331170439,1720116653276,-500.0,0.0001452,2]
[331170440,1720116653287,-2976.84,0.0001452,2]
[331170441,1720116653296,-1118.27,0.0001452,2]
[331170442,1720116653382,-500.0,0.0001452,2]
[331170443,1720116653392,-500.0,0.0001452,2]
[331170444,1720116653401,-500.0,0.0001452,2]
[331170445,1720116653410,-500.0,0.0001452,2]
[331170446,1720116653420,-500.0,0.0001452,2]
[331170447,1720116653430,-5026.68,0.0001452,2]
[331170448,1720116653439,-500.0,0.0001452,2]
[331170449,1720116653449,-500.0,0.0001452,2]
[331170450,1720116653458,-1452.56,0.0001452,2]
[331170451,1720116653467,-503.94876905,0.0001452,2]
[331170452,1720116653477,-1096.17,0.0001452,2]
[331170453,1720116653487,-500.0,0.0001452,2]
[331170454,1720116653500,-504.12,0.0001452,2]
[331170455,1720116653510,-515.36,0.0001452,2]
[331170456,1720116653519,-500.0,0.0001452,2]
[331170457,1720116653528,-840.11,0.0001452,2]
[331170458,1720116653537,-500.0,0.0001452,2]
[331170459,1720116653546,-151.0,0.0001452,2]
[331170460,1720116653556,-500.0,0.0001452,2]
[331170461,1720116653565,-151.0,0.0001452,2]
[331170462,1720116653575,-500.0,0.0001452,2]
[331170463,1720116653584,-4275.55,0.0001452,2]
[331170464,1720116653593,-752.25,0.0001452,2]
[331170465,1720116653603,-500.0,0.0001452,2]
[331170466,1720116653613,-500.0,0.0001452,2]
[331170467,1720116653622,-306.0,0.00014521,2]
[331170468,1720116653631,-153.0,0.00014521,2]
[331170469,1720116653640,-306.0,0.00014521,2]
[331170470,1720116653650,-154.6289612,0.00014521,2]
[331170471,1720116653659,-153.0,0.00014521,2]
[331170472,1720116653668,-150.0,0.00014644,2]
[331170473,1720116653677,-153.0,0.00014658,2]
[331170474,1720116653686,-153.0,0.00014658,2]
[331170475,1720116653695,-153.0,0.00014658,2]
[331170476,1720116653705,-153.0,0.00014658,2]
[331170477,1720116653714,-153.0,0.00014658,2]
[331170478,1720116653723,-153.0,0.00014658,2]
[331170479,1720116653734,-8338.6718065,0.00014674,2]
[331170480,1720116653743,-151.0,0.00014684,2]
[331170481,1720116653753,-151.0,0.00014684,2]
[331170482,1720116653762,-620.182383,0.00014684,2]
[331170483,1720116653772,-620.182383,0.00014684,2]
[331170484,1720116653782,-151.0,0.00014684,2]
[331170485,1720116653792,-3503.12,0.00014693,2]
[331170486,1720116653802,-3503.12,0.00014693,2]
[331170487,1720116653812,-3503.12,0.00014693,2]
[331170488,1720116653822,-3503.12,0.00014693,2]
[331170489,1720116653832,-3503.12,0.00014693,2]
[331170490,1720116653841,-3503.12,0.00014693,2]
[331170491,1720116653851,-153.434505,0.00014784,2]
[331170492,1720116653861,-151.0,0.00014784,2]
[331170493,1720116653872,-151.0,0.00014784,2]
[331170494,1720116653881,-151.0,0.00014784,2]
[331170495,1720116653890,-856.117381,0.00014784,2]
[331170496,1720116653899,-856.117381,0.00014784,2]
[331170497,1720116653909,-188.438502,0.00014793,2]
[331170498,1720116653918,-290.082694,0.00014793,2]
[331170499,1720116653927,-290.082694,0.00014793,2]
[331170500,1720116653936,-151.0,0.00014793,2]
[331170501,1720116653945,-204.2,0.00014793,2]
[331170502,1720116653955,-2132.45671248,0.00014794,2]
[331170503,1720116653965,-3137.77932824,0.00014794,2]
[331170504,1720116653975,-1160.46938729,0.00014794,2]
[331170505,1720116653984,-500.0,0.00014794,2]
[331170506,1720116653993,-734.56,0.00014794,2]
[331170507,1720116654002,-734.79,0.00014794,2]
[331170508,1720116654011,-514.69,0.00014794,2]
[331170509,1720116654020,-577.75,0.00014794,2]
[331170510,1720116654030,-500.0,0.00014794,2]
[331170511,1720116654039,-500.0,0.00014794,2]
[331170512,1720116654049,-1209.33,0.00014794,2]
[331170513,1720116654058,-803.35,0.00014794,2]
[331170514,1720116654068,-500.0,0.00014794,2]
[331170515,1720116654077,-500.0,0.00014794,2]
[331170516,1720116654087,-567.38,0.00014794,2]
[331170517,1720116654096,-500.0,0.00014794,2]
[331170518,1720116654105,-500.0,0.00014794,2]
[331170519,1720116654115,-1440.93,0.00014794,2]
[331170520,1720116654124,-615.69,0.00014794,2]
[331170521,1720116654134,-500.0,0.00014794,2]
[331170522,1720116654144,-500.0,0.00014794,2]
[331170523,1720116654153,-500.0,0.00014794,2]
[331170524,1720116654163,-500.0,0.00014794,2]
[331170525,1720116654172,-500.0,0.00014794,2]
[331170526,1720116654183,-6635.75,0.00014794,2]
[331170527,1720116654196,-924.74,0.00014794,2]
[331170528,1720116654206,-500.0,0.00014794,2]
[331170529,1720116654216,-1164.31,0.00014794,2]
[331170530,1720116654227,-500.0,0.00014794,2]
[331170531,1720116654237,-587.9,0.00014794,2]
[331170532,1720116654247,-3407.86,0.00014794,2]
[331170533,1720116654255,-500.0,0.00014794,2]
[331170534,1720116654267,-500.0,0.00014794,2]
[331170535,1720116654276,-688.24,0.00014794,2]
[331170536,1720116654286,-500.0,0.00014794,2]
[331170537,1720116654296,-654.16,0.00014794,2]
[331170538,1720116654305,-500.0,0.00014794,2]
[331170539,1720116654315,-500.0,0.00014794,2]
[331170540,1720116654324,-500.0,0.00014794,2]
[331170541,1720116654334,-524.4,0.00014794,2]
[331170542,1720116654344,-183.78,0.00014794,2]
[331170543,1720116654355,-500.0,0.00014794,2]
[331170544,1720116654365,-683.65,0.00014794,2]
[331170545,1720116654375,-500.0,0.00014794,2]
[331170546,1720116654385,-500.0,0.00014794,2]
[331170547,1720116654395,-500.0,0.00014794,2]
[331170548,1720116654404,-500.0,0.00014794,2]
[331170549,1720116654414,-690.44,0.00014794,2]
[331170550,1720116654424,-500.0,0.00014794,2]
[331170551,1720116654434,-611.26,0.00014794,2]
[331170552,1720116654443,-500.0,0.00014794,2]
[331170553,1720116654453,-500.0,0.00014794,2]
[331170554,1720116654463,-500.0,0.00014794,2]
[331170555,1720116654473,-357.934659,0.00014794,2]
[331170556,1720116654482,-500.0,0.00014794,2]
[331170557,1720116654493,-500.0,0.00014794,2]
[331170558,1720116654503,-357.934659,0.00014794,2]
[331170559,1720116654512,-514.68,0.00014794,2]
[331170560,1720116654522,-500.0,0.00014794,2]
[331170561,1720116654532,-616.91,0.00014794,2]
[331170562,1720116654542,-500.0,0.00014794,2]
[331170563,1720116654551,-561.39,0.00014794,2]
[331170564,1720116654560,-151.0,0.00014794,2]
[331170565,1720116654570,-500.0,0.00014794,2]
[331170566,1720116654580,-500.0,0.00014794,2]
[331170567,1720116654589,-869.14,0.00014794,2]
[331170568,1720116654599,-500.0,0.00014794,2]
[331170569,1720116654609,-500.0,0.00014794,2]
[331170570,1720116654619,-501.03813691,0.00014794,2]
[331170571,1720116654628,-500.0,0.00014794,2]
[331170572,1720116654638,-500.0,0.00014794,2]
[331170573,1720116654648,-500.0,0.00014794,2]
[331170574,1720116654657,-2191.0,0.00014794,2]
[331170575,1720116654666,-500.0,0.00014794,2]
[331170576,1720116654676,-500.0,0.00014794,2]
[331170577,1720116654686,-500.0,0.00014794,2]
[331170578,1720116654696,-2608.98,0.00014794,2]
[331170579,1720116654706,-1428.55,0.00014794,2]
[331170580,1720116654716,-500.0,0.00014794,2]
[331170581,1720116654726,-854.63,0.00014794,2]
[331170582,1720116654742,-500.0,0.00014794,2]
[331170583,1720116654752,-500.0,0.00014794,2]
[331170584,1720116654762,-500.0,0.00014794,2]
[331170585,1720116654772,-937.63,0.00014794,2]
[331170586,1720116654782,-7574.65,0.00014794,2]
[331170587,1720116654791,-4805.61,0.00014794,2]
[331170588,1720116654801,-686.89,0.00014794,2]
[331170589,1720116654810,-510.06897991,0.00014794,2]
[331170590,1720116654820,-500.0,0.00014794,2]
[331170591,1720116654909,-2684.55,0.00014794,2]
[331170592,1720116654919,-500.0,0.00014794,2]
[331170593,1720116654929,-500.0,0.00014794,2]
[331170594,1720116654939,-500.0,0.00014794,2]
[331170595,1720116654949,-500.0,0.00014794,2]
[331170596,1720116654959,-6698.25,0.00014794,2]
[331170597,1720116654968,-6698.25,0.00014794,2]
[331170598,1720116654977,-500.0,0.00014794,2]
[331170599,1720116654989,-500.0,0.00014794,2]
[331170600,1720116654999,-393.029089,0.00014794,2]
[331170601,1720116655008,-393.029089,0.00014794,2]
[331170602,1720116655018,-500.0,0.00014794,2]
[331170603,1720116655027,-151.0,0.00014794,2]
[331170604,1720116655037,-500.0,0.00014794,2]
[331170605,1720116655046,-500.0,0.00014794,2]
[331170606,1720116655056,-17530.33,0.00014794,2]
[331170607,1720116655065,-151.0,0.00014794,2]
[331170608,1720116655074,-500.0,0.00014794,2]
[331170609,1720116655084,-1688.93,0.00014794,2]
[331170610,1720116655093,-500.0,0.00014794,2]
[331170611,1720116655103,-500.0,0.00014794,2]
[331170612,1720116655112,-2976.84,0.00014794,2]
[331170613,1720116655121,-1118.27,0.00014794,2]
[331170614,1720116655131,-623.63,0.00014794,2]
[331170615,1720116655141,-500.0,0.00014794,2]
[331170616,1720116655151,-500.0,0.00014794,2]
[331170617,1720116655160,-5026.68,0.00014794,2]
[331170618,1720116655169,-500.0,0.00014794,2]
[331170619,1720116655181,-500.0,0.00014794,2]
[331170620,1720116655192,-1452.56,0.00014794,2]
[331170621,1720116655202,-1096.17,0.00014794,2]
[331170622,1720116655212,-500.0,0.00014794,2]
[331170623,1720116655223,-515.36,0.00014794,2]
[331170624,1720116655233,-500.0,0.00014794,2]
[331170625,1720116655243,-840.11,0.00014794,2]
[331170626,1720116655252,-500.0,0.00014794,2]
[331170627,1720116655261,-500.0,0.00014794,2]
[331170628,1720116655273,-4275.55,0.00014794,2]
[331170629,1720116655284,-752.25,0.00014794,2]
[331170630,1720116655294,-500.0,0.00014794,2]
[331170631,1720116655304,-153.0,0.00014904,2]
[331170632,1720116655313,-153.0,0.00014904,2]
[331170633,1720116655322,-153.0,0.00014904,2]
[331170634,1720116655332,-153.0,0.00014904,2]
[331170635,1720116655341,-153.0,0.00014904,2]
[331170636,1720116655351,-153.0,0.00014904,2]
[331170637,1720116655361,-153.0,0.00014904,2]
[331170638,1720116655370,-11029.28750384,0.00014998,2]
[331170639,1720116655380,-6076.9012323,0.00014998,2]
[331170640,1720116655389,-2126.43441341,0.00014999,2]
[331170641,1720116655399,-1434.44237247,0.00014999,2]
[331170642,1720116655408,-789.77698638,0.00014999,2]
[331170643,1720116655417,-1463.29635585,0.00014999,2]
[331170644,1720116655427,-2118.3618334,0.00014999,2]
[331170645,1720116655436,-3078.51196359,0.00014999,2]
[331170646,1720116655446,-1916.29526789,0.00014999,2]
[331170647,1720116655455,-1634.59229075,0.00014999,2]
[331170648,1720116655465,-1500.0,0.00014999,2]
[331170649,1720116655474,-4270.30133449,0.00014999,2]
[331170650,1720116655523,-440.41891497,0.00014999,2]
[331170651,1720116655533,-1597.25650539,0.00014999,2]
[331170652,1720116655544,-151.0,0.00014999,2]
[331170653,1720116655553,-143.84832261,0.00014999,2]
[331170654,1720116655565,-7.15167739,0.00014999,2]
[331170655,1720116655575,-620.182383,0.00014999,2]
[331170656,1720116655584,-620.182383,0.00014999,2]
[331170657,1720116655594,-42.39143466,0.00014999,2]
[331170658,1720116655605,-108.60856534,0.00014999,2]
[331170659,1720116655615,-151.0,0.00014999,2]
[331170660,1720116655624,-42.59814253,0.00014999,2]
[331170661,1720116655636,-108.40185747,0.00014999,2]
[331170662,1720116655646,-2832.46914027,0.00015,2]
[331170663,1720116655655,-808.0087546,0.00015,2]
[331170664,1720116655664,-154.88383712,0.00015,2]
[331170665,1720116655674,-18.66476107,0.00015,2]
[331170666,1720116655685,-1020.40212511,0.00015,2]
[331170667,1720116655695,-388.09784489,0.00015,2]
[331170668,1720116655905,-284.76615511,0.0001212,2]
[331170669,1720116655915,-1009.66817667,0.00013598,2]
[331170670,1720116655927,-990.33182333,0.00013598,2]
[331170671,1720116655937,-500.0,0.00013698,2]
[331170672,1720116655947,-500.0,0.00013698,2]
[331170673,1720116655957,-500.0,0.00013698,2]
[331170674,1720116655966,-501.14042304,0.00013972,2]
[331170675,1720116655975,-153.0,0.00014247,2]
[331170676,1720116655988,-153.0,0.00014658,2]
[331170677,1720116655997,-549.70215511,0.00015,2]
[331170678,1720116656007,-845.95566823,0.00015,2]
[331170679,1720116656018,-1574.60209746,0.00015,2]
[331170680,1720116656028,-948.84245203,0.00015,2]
[331170681,1720116656038,-395.4705443,0.00015,2]
[331170682,1720116656047,-153.0,0.00015041,2]
[331170683,1720116656057,-153.0,0.00015041,2]
[331170684,1720116656067,-153.0,0.00015041,2]
[331170685,1720116656076,-153.0,0.00015041,2]
[331170686,1720116656086,-153.0,0.00015041,2]
[331170687,1720116656095,-153.0,0.00015041,2]
[331170688,1720116656104,-153.0,0.00015041,2]
[331170689,1720116656114,-153.0,0.00015041,2]
[331170690,1720116656196,-153.0,0.00015041,2]
[331170691,1720116656210,-500.0,0.00015068,2]
[331170692,1720116656220,-734.56,0.00015068,2]
[331170693,1720116656229,-734.79,0.00015068,2]
[331170694,1720116656243,-514.69,0.00015068,2]
[331170695,1720116656252,-577.75,0.00015068,2]
[331170696,1720116656262,-99.08854907,0.00015068,2]
[331170697,1720116656277,-51.91145093,0.00015068,2]
[331170698,1720116656287,-500.0,0.00015068,2]
[331170699,1720116656297,-500.0,0.00015068,2]
[331170700,1720116656306,-1209.33,0.00015068,2]
[331170701,1720116656315,-803.35,0.00015068,2]
[331170702,1720116656326,-500.0,0.00015068,2]
[331170703,1720116656335,-515.25885815,0.00015068,2]
[331170704,1720116656346,-52.12114185,0.00015068,2]
[331170705,1720116656356,-468.30915315,0.00015068,2]
[331170706,1720116656367,-31.69084685,0.00015068,2]
[331170707,1720116656377,-1440.93,0.00015068,2]
[331170708,1720116656387,-615.69,0.00015068,2]
[331170709,1720116656396,-151.0,0.00015068,2]
[331170710,1720116656406,-500.0,0.00015068,2]
[331170711,1720116656416,-151.0,0.00015068,2]
[331170712,1720116656425,-596.27964703,0.00015068,2]
[331170713,1720116656435,-500.0,0.00015068,2]
[331170714,1720116656444,-392.96148517,0.00015068,2]
[331170715,1720116656455,-6635.75,0.00015068,2]
[331170716,1720116656464,-151.0,0.00015068,2]
[331170717,1720116656473,-924.74,0.00015068,2]
[331170718,1720116656483,-500.0,0.00015068,2]
[331170719,1720116656494,-1164.31,0.00015068,2]
[331170720,1720116656503,-500.0,0.00015068,2]
[331170721,1720116656513,-587.9,0.00015068,2]
[331170722,1720116656523,-231.743287,0.00015068,2]
[331170723,1720116656532,-151.0,0.00015068,2]
[331170724,1720116656541,-3407.86,0.00015068,2]
[331170725,1720116656551,-151.0,0.00015068,2]
[331170726,1720116656560,-500.0,0.00015068,2]
[331170727,1720116656569,-500.0,0.00015068,2]
[331170728,1720116656578,-688.24,0.00015068,2]
[331170729,1720116656587,-500.0,0.00015068,2]
[331170730,1720116656597,-444.448529,0.00015068,2]
[331170731,1720116656606,-654.16,0.00015068,2]
[331170732,1720116656616,-444.448529,0.00015068,2]
[331170733,1720116656626,-151.0,0.00015068,2]
[331170734,1720116656635,-500.0,0.00015068,2]
[331170735,1720116656644,-500.0,0.00015068,2]
[331170736,1720116656654,-500.0,0.00015068,2]
[331170737,1720116656663,-524.4,0.00015068,2]
[331170738,1720116656673,-500.0,0.00015068,2]
[331170739,1720116656682,-683.65,0.00015068,2]
[331170740,1720116656692,-500.0,0.00015068,2]
[331170741,1720116656702,-500.0,0.00015068,2]
[331170742,1720116656713,-500.0,0.00015068,2]
[331170743,1720116656723,-500.0,0.00015068,2]
[331170744,1720116656732,-690.44,0.00015068,2]
[331170745,1720116656744,-500.0,0.00015068,2]
[331170746,1720116656754,-611.26,0.00015068,2]
[331170747,1720116656764,-505.11401885,0.00015068,2]
[331170748,1720116656773,-500.0,0.00015068,2]
[331170749,1720116656782,-500.0,0.00015068,2]
[331170750,1720116656792,-357.934659,0.00015068,2]
[331170751,1720116656802,-500.0,0.00015068,2]
[331170752,1720116656811,-500.0,0.00015068,2]
[331170753,1720116656822,-357.934659,0.00015068,2]
[331170754,1720116656832,-514.68,0.00015068,2]
[331170755,1720116656848,-500.0,0.00015068,2]
[331170756,1720116656868,-616.91,0.00015068,2]
[331170757,1720116656884,-384.60289722,0.00015068,2]
[331170758,1720116656902,-151.0,0.00015068,2]
[331170759,1720116656919,-561.39,0.00015068,2]
[331170760,1720116656939,-500.0,0.00015068,2]
[331170761,1720116656958,-500.0,0.00015068,2]
[331170762,1720116656972,-869.14,0.00015068,2]
[331170763,1720116656991,-500.0,0.00015068,2]
[331170764,1720116657004,-500.0,0.00015068,2]
[331170765,1720116657017,-500.0,0.00015068,2]
[331170766,1720116657034,-500.0,0.00015068,2]
[331170767,1720116657051,-151.0,0.00015068,2]
[331170768,1720116657071,-2608.98,0.00015068,2]
[331170769,1720116657082,-1428.55,0.00015068,2]
[331170770,1720116657096,-500.0,0.00015068,2]
[331170771,1720116657113,-854.63,0.00015068,2]
[331170772,1720116657126,-856.117381,0.00015068,2]
[331170773,1720116657141,-856.117381,0.00015068,2]
[331170774,1720116657153,-500.0,0.00015068,2]
[331170775,1720116657166,-500.0,0.00015068,2]
[331170776,1720116657182,-937.63,0.00015068,2]
[331170777,1720116657199,-7574.65,0.00015068,2]
[331170778,1720116657212,-4805.61,0.00015068,2]
[331170779,1720116657227,-686.89,0.00015068,2]
[331170780,1720116657243,-500.0,0.00015068,2]
[331170781,1720116657256,-2684.55,0.00015068,2]
[331170782,1720116657270,-500.0,0.00015068,2]
[331170783,1720116657284,-500.0,0.00015068,2]
[331170784,1720116657298,-500.0,0.00015068,2]
[331170785,1720116657311,-500.0,0.00015068,2]
[331170786,1720116657325,-6698.25,0.00015068,2]
[331170787,1720116657337,-500.0,0.00015068,2]
[331170788,1720116657351,-6698.25,0.00015068,2]
[331170789,1720116657364,-500.0,0.00015068,2]
[331170790,1720116657377,-393.029089,0.00015068,2]
[331170791,1720116657390,-393.029089,0.00015068,2]
[331170792,1720116657404,-289.68394639,0.00015068,2]
[331170793,1720116657418,-151.0,0.00015068,2]
[331170794,1720116657427,-500.0,0.00015068,2]
[331170795,1720116657437,-17530.33,0.00015068,2]
[331170796,1720116657446,-151.0,0.00015068,2]
[331170797,1720116657455,-500.0,0.00015068,2]
[331170798,1720116657465,-1688.93,0.00015068,2]
[331170799,1720116657475,-2976.84,0.00015068,2]
[331170800,1720116657484,-1118.27,0.00015068,2]
[331170801,1720116657494,-500.0,0.00015068,2]
[331170802,1720116657503,-5026.68,0.00015068,2]
[331170803,1720116657512,-500.0,0.00015068,2]
[331170804,1720116657522,-500.0,0.00015068,2]
[331170805,1720116657531,-290.082694,0.00015068,2]
[331170806,1720116657540,-1452.56,0.00015068,2]
[331170807,1720116657550,-290.082694,0.00015068,2]
[331170808,1720116657560,-151.0,0.00015068,2]
[331170809,1720116657569,-1096.17,0.00015068,2]
[331170810,1720116657579,-500.0,0.00015068,2]
[331170811,1720116657588,-515.36,0.00015068,2]
[331170812,1720116657598,-500.0,0.00015068,2]
[331170813,1720116657607,-840.11,0.00015068,2]
[331170814,1720116657616,-500.0,0.00015068,2]
[331170815,1720116657625,-500.0,0.00015068,2]
[331170816,1720116657635,-4275.55,0.00015068,2]
[331170817,1720116657644,-752.25,0.00015068,2]
[331170818,1720116657653,-153.0,0.00015068,2]
[331170819,1720116657844,-153.0,0.00015068,2]
[331170820,1720116657857,-153.0,0.00015068,2]
[331170821,1720116657867,-206.11478,0.00015068,2]
[331170822,1720116657876,-206.11478,0.00015068,2]
[331170823,1720116657888,-206.11478,0.00015068,2]
[331170824,1720116657897,-206.11478,0.00015068,2]
[331170825,1720116657907,-206.11478,0.00015068,2]
[331170826,1720116657916,-206.11478,0.00015068,2]
[331170827,1720116657926,-206.11478,0.00015068,2]
[331170828,1720116657935,-414.392751,0.00015068,2]
[331170829,1720116657945,-153.0,0.00015068,2]
[331170830,1720116657954,-153.0,0.00015068,2]
[331170831,1720116657963,-153.0,0.00015068,2]
[331170832,1720116657972,-500.0,0.00015342,2]
[331170833,1720116657983,-734.56,0.00015342,2]
[331170834,1720116657993,-274.428179,0.00015342,2]
[331170835,1720116658003,-734.79,0.00015342,2]
[331170836,1720116658012,-151.0,0.00015342,2]
[331170837,1720116658021,-514.69,0.00015342,2]
[331170838,1720116658033,-577.75,0.00015342,2]
[331170839,1720116658042,-151.0,0.00015342,2]
[331170840,1720116658052,-500.0,0.00015342,2]
[331170841,1720116658061,-1209.33,0.00015342,2]
[331170842,1720116658071,-803.35,0.00015342,2]
[331170843,1720116658081,-500.0,0.00015342,2]
[331170844,1720116658091,-567.38,0.00015342,2]
[331170845,1720116658100,-500.0,0.00015342,2]
[331170846,1720116658110,-1440.93,0.00015342,2]
[331170847,1720116658120,-615.69,0.00015342,2]
[331170848,1720116658130,-500.0,0.00015342,2]
[331170849,1720116658139,-500.0,0.00015342,2]
[331170850,1720116658150,-6635.75,0.00015342,2]
[331170851,1720116658161,-924.74,0.00015342,2]
[331170852,1720116658171,-500.0,0.00015342,2]
[331170853,1720116658182,-1164.31,0.00015342,2]
[331170854,1720116658192,-193.093439,0.00015342,2]
[331170855,1720116658208,-587.9,0.00015342,2]
[331170856,1720116658218,-3407.86,0.00015342,2]
[331170857,1720116658228,-688.24,0.00015342,2]
[331170858,1720116658239,-500.0,0.00015342,2]
[331170859,1720116658248,-654.16,0.00015342,2]
[331170860,1720116658257,-500.0,0.00015342,2]
[331170861,1720116658267,-500.0,0.00015342,2]
[331170862,1720116658279,-500.0,0.00015342,2]
[331170863,1720116658290,-524.4,0.00015342,2]
[331170864,1720116658300,-683.65,0.00015342,2]
[331170865,1720116658310,-597.53473647,0.00015342,2]
[331170866,1720116658319,-500.0,0.00015342,2]
[331170867,1720116658328,-500.0,0.00015342,2]
[331170868,1720116658337,-500.0,0.00015342,2]
[331170869,1720116658346,-690.44,0.00015342,2]
[331170870,1720116658356,-500.0,0.00015342,2]
[331170871,1720116658366,-611.26,0.00015342,2]
[331170872,1720116658375,-584.30245844,0.00015342,2]
[331170873,1720116658384,-500.0,0.00015342,2]
[331170874,1720116658393,-500.0,0.00015342,2]
[331170875,1720116658402,-514.68,0.00015342,2]